bitfinex-derivatives/quotes_ETHF0:USTF0_20240917
["timestamp","ask_amount","ask_price","bid_price","bid_amount"]
[1726593190855,0.4172,2364.9,2364.3,0.4239]
[1726593191052,0.4142,2365.0,2364.4,1.05708]
[1726593191262,0.4142,2365.0,2364.8,0.42275]
[1726593191554,0.42274,2364.9,2364.7,0.42276]
[1726593192147,0.42276,2364.8,2364.6,0.42278]
[1726593192347,3.2078,2364.8,2364.6,0.42278]
[1726593192558,0.42276,2364.8,2364.5,0.4047]
[1726593192850,0.42276,2364.8,2364.6,0.42279]
[1726593193266,0.42279,2364.7,2364.5,0.4228]
[1726593193560,0.42278,2364.7,2364.5,0.4228]
[1726593193849,3.2078,2364.9,2364.3,4.0336]
[1726593194052,0.42277,2364.8,2364.6,0.42278]
[1726593194252,0.42276,2364.8,2364.6,0.42278]
[1726593194461,0.42279,2364.7,2364.5,0.4228]
[1726593194650,0.42277,2364.8,2364.6,0.42279]
[1726593194952,3.2078,2364.9,2364.7,0.42278]
[1726593194953,3.63055,2364.9,2364.7,0.42278]
[1726593195158,1.47104,2365.0,2364.8,0.42276]
[1726593195159,0.4142,2365.0,2364.8,0.42276]
[1726593195452,0.4142,2365.0,2364.8,0.42275]
[1726593195854,0.42275,2364.9,2364.7,0.42276]
[1726593196059,0.42275,2364.9,2364.4,1.05708]
[1726593196652,0.4142,2365.0,2364.9,0.42274]
[1726593197157,3.6036,2365.2,2364.9,4.2288]
[1726593197158,3.6305,2365.2,2364.9,4.2288]
[1726593197350,0.42269,2365.2,2365.1,0.42269]
[1726593197553,0.42269,2365.2,2365.0,0.42271]
[1726593197952,0.4227,2365.1,2365.0,0.42271]
[1726593198459,3.6305,2365.2,2365.0,0.42271]
[1726593198662,0.4227,2365.1,2365.0,0.42271]
[1726593199258,3.2078,2365.2,2364.9,0.42273]
[1726593199259,0.42273,2365.0,2364.9,0.42273]
[1726593199561,1.05677,2365.1,2364.4,4.26486]
[1726593199750,0.42276,2364.8,2364.4,5.10846]
[1726593200058,0.42276,2364.8,2364.7,0.42276]
[1726593200757,0.83665,2364.9,2364.8,0.42276]
[1726593201351,0.83665,2364.9,2364.4,5.10847]
[1726593201352,0.42277,2364.8,2364.7,0.42277]
[1726593201860,0.42277,2364.8,2364.4,4.0514]
[1726593201861,4.2288,2364.8,2364.4,0.4223]
[1726593202055,0.42278,2364.7,2364.5,0.42281]
[1726593202365,4.04445,2364.9,2364.7,0.42276]
[1726593202559,3.6217,2364.9,2364.4,0.4223]
[1726593202759,0.3891,2365.0,2364.9,0.42274]
[1726593203059,3.6006,2365.3,2364.6,4.26476]
[1726593203360,3.63042,2365.6,2364.9,7.2578]
[1726593203555,3.2078,2365.6,2365.3,0.42265]
[1726593203757,3.2078,2365.6,2365.0,1.1998]
[1726593203758,3.2078,2365.6,2365.4,0.42264]
[1726593203954,3.2078,2365.6,2365.0,1.1998]
[1726593204356,0.3928,2365.7,2365.2,7.2578]
[1726593204564,0.8154,2365.7,2365.2,7.2578]
[1726593204763,0.8154,2365.7,2365.4,0.42264]
[1726593205066,0.3928,2365.7,2365.5,0.42262]
[1726593205362,0.8154,2365.7,2365.4,0.42264]
[1726593205550,0.3928,2365.7,2365.2,3.2078]
[1726593205956,0.8154,2365.7,2365.4,0.42264]
[1726593206155,0.3928,2365.7,2365.5,0.42263]
[1726593207059,0.3928,2365.7,2365.6,0.42262]
[1726593207455,0.3928,2365.7,2365.2,3.2078]
[1726593207653,0.3928,2365.7,2365.5,0.42262]
[1726593207856,3.64877383,2366.1,2365.5,0.42262]
[1726593207857,2.18731383,2366.1,2366.0,0.42254]
[1726593208055,6.36470716,2366.3,2365.6,1.05655]
[1726593208056,4.05759,2366.3,2366.1,0.42252]
[1726593208757,0.42253,2366.1,2365.7,0.3919]
[1726593209167,0.42252,2366.2,2365.7,0.3919]
[1726593209367,0.42252,2366.2,2365.9,0.42254]
[1726593209663,0.42253,2366.1,2365.9,0.42255]
[1726593209866,0.42252,2366.2,2365.9,0.42255]
[1726593210060,0.42252,2366.2,2365.7,3.5997]
[1726593210262,0.42252,2366.2,2365.9,0.42256]
[1726593210461,0.42252,2366.2,2366.0,0.42254]
[1726593210864,0.42253,2366.1,2365.7,3.5997]
[1726593211061,3.6351,2366.3,2365.7,3.5997]
[1726593211062,0.42252,2366.2,2366.0,0.42253]
[1726593211662,0.42252,2366.2,2366.1,0.42253]
[1726593211966,0.42252,2366.2,2366.0,0.42253]
[1726593212757,0.42253,2366.1,2366.0,0.42253]
[1726593212967,3.6351,2366.3,2365.7,3.5997]
[1726593213172,3.6351,2366.3,2366.2,0.42251]
[1726593213670,4.05759,2366.3,2366.2,0.42251]
[1726593214059,0.42252,2366.2,2366.1,0.42253]
[1726593214261,0.42252,2366.2,2366.0,0.42253]
[1726593214458,0.42252,2366.2,2366.1,0.42253]
[1726593215867,0.42252,2366.2,2365.7,4.65619]
[1726593216068,0.42252,2366.2,2366.1,0.42253]
[1726593216466,3.63024,2366.6,2366.5,0.42245]
[1726593216862,3.2078,2366.6,2366.5,0.42245]
[1726593217166,0.3991,2366.7,2366.6,0.42244]
[1726593217361,0.409,2366.8,2366.7,0.42242]
[1726593217562,0.4243,2367.1,2366.7,4.2256]
[1726593217563,0.3991,2367.0,2366.7,4.2256]
[1726593217767,0.3991,2367.0,2366.6,3.2078]
[1726593217967,3.14340716,2367.3,2366.7,3.3]
[1726593218169,3.14340716,2367.3,2366.8,0.4088]
[1726593218473,0.83132,2367.3,2367.0,0.42235]
[1726593218667,0.409,2367.3,2366.9,3.3]
[1726593218869,2.73440716,2367.6,2367.1,3.3]
[1726593219071,2.73440716,2367.6,2367.3,0.4223]
[1726593219072,0.42228,2367.6,2367.3,0.4223]
[1726593219270,0.42226,2367.6,2367.3,0.4223]
[1726593219475,3.52360716,2367.8,2367.5,3.3]
[1726593219476,0.7892,2367.8,2367.5,3.3]
[1726593219774,0.42218,2368.1,2367.7,0.42223]
[1726593219962,0.42218,2368.1,2367.7,0.42224]
[1726593220369,0.7892,2368.2,2367.5,3.2078]
[1726593220968,0.42217,2368.1,2367.7,0.42224]
[1726593221372,1.21136,2368.2,2367.8,0.42222]
[1726593221572,3.2078,2368.3,2367.7,4.06]
[1726593221766,3.2078,2368.3,2368.2,0.42215]
[1726593222171,3.2078,2368.3,2368.2,4.64455]
[1726593222369,0.8183,2368.6,2368.2,4.2224]
[1726593222573,3.2078,2368.8,2368.5,0.4221]
[1726593222775,3.2078,2368.8,2368.1,4.26323]
[1726593222968,3.2078,2368.8,2368.3,4.06]
[1726593223171,3.2078,2368.8,2368.6,0.42207]
[1726593223370,3.2078,2368.8,2368.5,0.42209]
[1726593224271,3.2078,2368.8,2368.1,3.2078]
[1726593224574,0.4131,2369.0,2368.7,0.42205]
[1726593224777,0.83511,2369.0,2368.7,0.42205]
[1726593225175,0.4131,2369.0,2368.4,3.2078]
[1726593225383,0.83512,2369.0,2368.7,0.42206]
[1726593225580,0.42203,2368.9,2368.4,3.2078]
[1726593225878,0.42204,2368.8,2368.5,0.42209]
[1726593226078,0.83512,2369.0,2368.6,0.42208]
[1726593226274,0.42203,2368.9,2368.6,0.42208]
[1726593226475,0.42203,2368.9,2368.6,0.42207]
[1726593226777,0.42205,2368.8,2368.5,0.42209]
[1726593227184,0.42204,2368.9,2368.6,0.42207]
[1726593227682,0.4131,2369.0,2368.4,3.2078]
[1726593227873,0.4131,2369.0,2368.8,0.42204]
[1726593228079,0.83511,2369.0,2368.8,0.42204]
[1726593228379,0.42197,2369.3,2368.7,3.2078]
[1726593228582,0.42197,2369.3,2369.0,0.422]
[1726593228879,3.2078,2369.4,2369.0,0.42199]
[1726593229179,3.62975,2369.4,2369.1,0.42197]
[1726593229477,3.62975,2369.4,2369.2,0.42197]
[1726593229673,0.42196,2369.3,2369.1,0.42198]
[1726593229871,0.42196,2369.3,2368.8,1.05512]
[1726593230073,0.42196,2369.3,2369.2,0.42197]
[1726593230275,3.2078,2369.4,2369.1,0.42198]
[1726593230473,0.42196,2369.3,2369.2,0.42197]
[1726593230784,0.42196,2369.3,2369.1,0.42198]
[1726593230983,3.2078,2369.4,2369.0,0.422]
[1726593231189,0.42198,2369.2,2369.0,0.422]
[1726593231682,0.42199,2369.1,2369.0,0.42201]
[1726593231877,0.42199,2369.1,2368.6,1.87458]
[1726593231878,9.11863,2369.5,2368.6,1.47459]
[1726593232080,1.05485,2369.4,2369.0,0.422]
[1726593232384,1.05485,2369.4,2368.6,4.68239]
[1726593232385,4.0038,2369.5,2368.7,1.05516]
[1726593232582,5.05862,2369.5,2369.1,0.42198]
[1726593232785,0.422,2369.1,2369.0,0.422]
[1726593232975,0.42197,2369.3,2368.7,1.05516]
[1726593233185,1.21793,2369.5,2369.0,1.05503]
[1726593233579,0.796,2369.5,2369.0,1.05503]
[1726593233887,0.42195,2369.4,2369.3,0.42196]
[1726593234185,0.796,2369.5,2369.0,1.05501]
[1726593234378,0.796,2369.5,2369.4,0.42194]
[1726593234581,0.42194,2369.4,2369.3,0.42194]
[1726593234977,1.21793,2369.5,2369.4,0.42194]
[1726593235385,0.42194,2369.4,2369.3,0.42195]
[1726593235583,0.796,2369.5,2369.0,1.05503]
[1726593235775,0.796,2369.5,2369.4,0.42194]
[1726593236094,1.21792,2369.5,2369.4,0.42194]
[1726593237875,0.4098,2369.5,2369.4,0.42194]
[1726593238076,3.2078,2369.6,2369.5,0.42192]
[1726593238284,0.42193,2369.5,2369.4,0.42193]
[1726593238576,0.42193,2369.5,2369.4,0.42192]
[1726593239786,3.2078,2369.6,2369.1,0.8117]
[1726593239987,0.42193,2369.5,2369.4,0.42192]
[1726593240187,0.42194,2369.4,2369.3,0.42194]
[1726593240389,0.42193,2369.5,2369.4,0.42193]
[1726593240582,3.62971,2369.6,2369.5,0.42192]
[1726593240777,3.6297,2369.6,2369.5,0.42192]
[1726593241088,3.2078,2369.6,2369.5,0.42192]
[1726593241583,0.808,2369.9,2369.8,0.42187]
[1726593242182,1.22985,2369.9,2369.8,0.42187]
[1726593242590,0.808,2369.9,2369.8,0.42187]
[1726593243583,0.808,2369.9,2369.7,0.42188]
[1726593243788,0.42191,2369.6,2369.3,4.76957]
[1726593243986,0.42193,2369.5,2369.4,0.42192]
[1726593244191,0.42195,2369.4,2369.3,0.42194]
[1726593244683,0.42192,2369.6,2369.5,0.42191]
[1726593245189,0.42189,2369.7,2369.6,0.4219]
[1726593245382,1.86265,2369.9,2369.5,3.29]
[1726593245594,0.808,2369.9,2369.4,4.26264]
[1726593245891,0.808,2369.9,2369.8,0.42187]
[1726593246278,0.42182,2370.1,2370.0,0.42183]
[1726593246885,0.42184,2370.0,2369.9,0.42183]
[1726593248189,0.42186,2369.9,2369.8,0.42185]
[1726593248490,0.42188,2369.8,2369.7,0.42187]
[1726593249197,0.42188,2369.8,2369.3,1.05486]
[1726593249198,0.42189,2369.7,2369.6,0.42188]
[1726593249493,0.42189,2369.7,2369.3,1.05486]
[1726593249684,0.42194,2369.5,2369.4,0.42193]
[1726593249882,0.401,2369.6,2369.1,0.8117]
[1726593250084,0.401,2369.6,2369.1,1.86667]
[1726593250283,0.42196,2369.3,2369.1,0.8117]
[1726593250479,0.42195,2369.4,2369.3,0.42195]
[1726593250894,0.42192,2369.5,2369.4,0.42193]
[1726593251093,0.42195,2369.4,2369.3,0.42195]
[1726593251287,0.42193,2369.5,2369.4,0.42193]
[1726593252496,0.401,2369.6,2369.0,1.05502]
[1726593252497,0.401,2369.6,2369.5,0.42192]
[1726593252697,0.8229,2369.6,2369.5,0.42192]
[1726593253197,0.42193,2369.5,2369.4,0.42193]
[1726593254085,4.03072,2369.6,2369.5,0.42192]
[1726593254287,0.42192,2369.5,2369.4,0.42192]
[1726593254988,4.03071,2369.6,2369.5,0.42192]
[1726593255386,0.42193,2369.5,2369.4,0.42193]
[1726593255592,3.6088,2369.6,2369.1,1.05497]
[1726593255783,3.6088,2369.6,2369.3,0.42194]
[1726593255784,0.42195,2369.4,2369.3,0.42194]
[1726593256094,0.82291,2369.6,2369.1,3.2078]
[1726593256283,0.82291,2369.6,2369.5,0.42192]
[1726593256791,0.82291,2369.6,2369.4,0.42192]
[1726593256792,0.42193,2369.5,2369.4,0.42192]
[1726593257698,5.27481,2369.5,2368.9,4.179]
[1726593257894,0.401,2369.6,2369.1,0.42199]
[1726593257895,0.42199,2369.2,2369.1,0.42199]
[1726593258091,1.4771,2368.9,2368.8,3.2078]
[1726593258290,1.4771,2368.9,2368.5,4.179]
[1726593258291,1.05512,2368.8,2368.5,4.179]
[1726593258591,1.05512,2368.8,2368.7,0.42206]
[1726593258592,0.84056,2368.8,2368.7,0.42206]
[1726593258797,0.4185,2368.8,2368.7,0.42206]
[1726593258990,0.7981,2369.1,2368.4,1.05528]
[1726593258991,0.8189,2369.1,2368.6,1.05519]
[1726593259183,0.3969,2369.1,2368.4,5.10528]
[1726593259386,0.42203,2368.9,2368.8,0.42204]
[1726593259590,3.62983,2368.9,2368.8,0.42204]
[1726593259987,0.42203,2368.9,2368.8,0.42204]
[1726593260198,3.62983,2368.9,2368.8,0.42204]
[1726593263103,0.42205,2368.8,2368.4,4.2631]
[1726593263300,1.4519,2369.1,2368.4,0.42211]
[1726593263301,0.4221,2368.5,2368.4,0.42211]
[1726593263598,0.42211,2368.5,2368.4,0.42211]
[1726593263901,0.42212,2368.4,2368.3,0.42212]
[1726593264104,0.42215,2368.2,2368.1,0.4101]
[1726593264399,0.42215,2368.2,2368.1,0.42217]
[1726593264400,3.62996,2368.2,2368.1,0.42217]
[1726593264594,0.42214,2368.3,2368.2,0.42215]
[1726593264795,0.42214,2368.3,2368.2,0.42214]
[1726593267201,3.2078,2368.5,2368.2,7.5124]
[1726593267404,0.8186,2368.6,2368.2,3.29]
[1726593267595,0.4221,2368.5,2368.4,0.4221]
[1726593268306,3.6299,2368.5,2368.4,0.4221]
[1726593268500,0.42212,2368.4,2368.3,0.42212]
[1726593268695,0.42212,2368.4,2368.2,3.6959]
[1726593268904,0.42213,2368.3,2368.2,0.4059]
[1726593269100,0.42213,2368.3,2368.2,0.42214]
[1726593269801,0.42216,2368.2,2368.1,0.42216]
[1726593270006,0.42214,2368.3,2368.2,0.42215]
[1726593270303,3.62995,2368.3,2368.2,0.42215]
[1726593270499,0.42216,2368.2,2368.1,0.42216]
[1726593270901,0.4222,2368.0,2367.9,0.42219]
[1726593271101,0.42218,2368.1,2368.0,0.42217]
[1726593271305,3.2078,2368.3,2368.1,0.42215]
[1726593271306,0.42216,2368.2,2368.1,0.42215]
[1726593272810,0.4222,2368.0,2367.9,0.4222]
[1726593272997,3.63,2368.0,2367.9,0.4222]
[1726593273196,3.63,2368.0,2367.8,0.42221]
[1726593273197,0.42222,2367.9,2367.8,0.42221]
[1726593273397,3.2078,2368.0,2367.9,0.42219]
[1726593273398,3.63,2368.0,2367.9,0.42219]
[1726593274602,3.63,2368.0,2367.8,0.4222]
[1726593274603,0.42221,2367.9,2367.8,0.4222]
[1726593274803,3.63,2368.0,2367.9,0.4222]
[1726593275602,0.82178,2368.1,2368.0,0.42219]
[1726593275808,0.3996,2368.1,2368.0,0.42219]
[1726593276607,3.6173,2368.4,2368.3,0.42213]
[1726593276814,3.6173,2368.4,2368.2,0.42214]
[1726593276815,0.42214,2368.3,2368.2,0.42214]
[1726593277706,4.03943,2368.4,2368.3,0.42213]
[1726593278311,0.42214,2368.3,2368.2,0.42214]
[1726593278708,4.03943,2368.4,2368.3,0.42213]
[1726593279010,0.42217,2368.1,2368.0,0.42217]
[1726593279211,3.2078,2368.1,2368.0,0.42217]
[1726593284813,3.2078,2368.4,2368.0,4.34547]
[1726593285011,3.2078,2368.4,2368.3,0.42213]
[1726593285712,0.42212,2368.4,2368.3,0.42213]
[1726593286019,0.42211,2368.5,2368.4,0.4221]
[1726593286224,0.42213,2368.4,2368.3,0.42212]
[1726593286524,1.44392,2368.6,2368.2,3.29]
[1726593286712,0.81079,2368.6,2368.5,0.4221]
[1726593286917,0.3887,2368.6,2368.5,0.4221]
[1726593287112,0.42205,2368.8,2368.4,3.29]
[1726593287323,4.0169,2369.0,2368.6,3.29]
[1726593287622,0.42203,2368.9,2368.8,0.42204]
[1726593288020,0.42204,2368.8,2368.6,0.42206]
[1726593288222,1.05507,2368.9,2368.3,3.29]
[1726593288522,3.2078,2368.7,2368.5,0.42209]
[1726593288718,3.62987,2368.7,2368.5,0.42209]
[1726593288915,3.2078,2368.7,2368.2,5.17636]
[1726593289121,3.62987,2368.7,2368.6,0.42208]
[1726593289811,3.2078,2368.7,2368.6,0.42208]
[1726593290218,3.62987,2368.7,2368.5,0.42208]
[1726593290426,3.62987,2368.7,2368.6,0.42208]
[1726593290824,3.62987,2368.7,2368.5,0.42208]
[1726593291129,3.62987,2368.7,2368.6,0.42208]
[1726593291419,3.2078,2368.7,2368.6,0.42208]
[1726593292017,0.42205,2368.8,2368.7,0.42206]
[1726593292519,4.64365,2368.8,2368.7,0.42206]
[1726593292823,0.42207,2368.7,2368.6,0.42207]
[1726593293027,3.62987,2368.7,2368.6,0.42207]
[1726593293519,0.42205,2368.8,2368.7,0.42206]
[1726593293820,0.42205,2368.8,2368.6,0.42207]
[1726593294126,3.2078,2368.7,2368.6,0.42207]
[1726593295919,3.41955491,2369.0,2368.5,1.05524]
[1726593296124,0.42205,2368.8,2368.7,0.42206]
[1726593296732,0.42204,2368.9,2368.8,0.42204]
[1726593296929,2.99753491,2369.0,2368.9,0.42203]
[1726593297125,3.2078,2369.1,2369.0,0.42201]
[1726593297429,3.2078,2369.1,2369.0,4.76704]
[1726593297824,3.2078,2369.1,2369.0,8.98784]
[1726593298019,3.43986491,2369.5,2369.0,8.98784]
[1726593298020,1.25143,2369.5,2369.4,0.42194]
[1726593298220,1.25143,2369.5,2369.1,1.05498]
[1726593298221,0.42194,2369.4,2369.3,0.42194]
[1726593298826,0.42196,2369.3,2369.2,0.42197]
[1726593299126,0.42196,2369.3,2369.0,3.29]
[1726593299127,3.2078,2369.4,2369.1,0.42198]
[1726593299328,4.26266,2369.4,2369.1,0.42198]
[1726593299529,0.42197,2369.3,2369.2,0.42197]
[1726593299922,0.42198,2369.2,2369.1,0.42198]
[1726593300229,5.39623491,2369.4,2368.9,1.84647]
[1726593300427,5.39623491,2369.4,2368.9,0.7914]
[1726593300733,0.42197,2369.2,2369.1,0.42198]
[1726593301035,0.422,2369.1,2368.9,0.3989]
[1726593301223,0.4128,2369.0,2368.9,0.42203]
[1726593301528,1.46783,2369.0,2368.6,0.4236]
[1726593301724,1.46783,2369.0,2368.8,0.42204]
[1726593301725,0.4128,2369.0,2368.8,0.42204]
[1726593301919,0.4128,2369.0,2368.6,0.42207]
[1726593302123,2.60123491,2369.0,2368.5,4.179]
[1726593302323,0.42206,2368.8,2368.5,4.179]
[1726593302523,2.60123491,2369.0,2368.5,3.29]
[1726593302723,3.02324491,2369.0,2368.8,0.42203]
[1726593302929,2.60123491,2369.0,2368.9,3.71203]
[1726593303129,0.83481,2369.0,2368.9,3.71203]
[1726593303334,0.4128,2369.0,2368.9,0.42203]
[1726593303633,0.4128,2369.0,2368.6,4.26299]
[1726593303634,5.80623491,2369.1,2369.0,0.42201]
[1726593303824,2.18843491,2369.3,2369.0,6.4978]
[1726593304134,2.18843491,2369.3,2369.2,0.42197]
[1726593304930,0.42197,2369.2,2369.1,0.42198]
[1726593305236,2.61039491,2369.3,2369.2,0.42197]
[1726593305424,2.61040491,2369.3,2369.1,0.42198]
[1726593305630,2.18843491,2369.3,2369.2,0.42197]
[1726593306040,2.58553491,2369.4,2369.3,0.42196]
[1726593306233,2.18843491,2369.4,2369.3,0.42196]
[1726593306430,2.61593491,2369.6,2369.2,3.2078]
[1726593306736,2.61593491,2369.6,2369.5,0.42192]
[1726593306737,0.4275,2369.6,2369.5,0.42192]
[1726593306933,0.8494,2369.6,2369.5,0.42192]
[1726593307130,2.61593491,2369.6,2369.5,0.42192]
[1726593307326,0.4275,2369.6,2369.5,0.42192]
[1726593307530,0.8494,2369.6,2369.5,0.42192]
[1726593308133,0.4275,2369.6,2369.5,0.42192]
[1726593308326,3.16190716,2369.6,2369.5,0.42192]
[1726593308536,3.58381716,2369.6,2369.5,0.42192]
[1726593308736,3.58381716,2369.6,2369.2,3.2078]
[1726593308933,2.19845254,2369.5,2369.4,0.42192]
[1726593310034,2.19845254,2369.6,2369.5,0.42192]
[1726593311235,2.61809384,2369.6,2369.5,0.42192]
[1726593311444,5.27476,2369.6,2368.9,0.401]
[1726593311632,3.14070716,2369.7,2368.8,0.42204]
[1726593311633,0.42203,2368.9,2368.8,0.42204]
[1726593311837,0.42202,2369.0,2368.8,0.42204]
[1726593312037,0.42204,2368.9,2368.8,0.42204]
[1726593312231,0.3977,2368.9,2368.8,0.42204]
[1726593312437,0.3977,2368.9,2368.5,1.2105]
[1726593312631,3.6055,2368.9,2368.3,3.2078]
[1726593312932,0.42208,2368.6,2368.3,3.2078]
[1726593313242,6.33990716,2368.9,2368.4,0.42212]
[1726593313243,0.3931,2368.5,2368.4,0.42212]
[1726593313633,2.61787568,2368.8,2368.5,0.42209]
[1726593313837,2.58892568,2368.7,2368.5,0.42209]
[1726593314239,2.58892568,2368.7,2368.2,3.2078]
[1726593314833,2.59352568,2368.9,2368.5,3.2078]
[1726593315034,2.19582568,2369.0,2368.6,1.2433]
[1726593315243,2.60182568,2369.1,2368.9,0.42202]
[1726593315544,0.406,2369.1,2368.9,0.42202]
[1726593316138,0.828,2369.1,2368.8,0.42204]
[1726593316336,0.406,2369.1,2368.6,0.836]
[1726593316530,0.406,2369.1,2368.4,4.6011]
[1726593316531,0.42207,2368.7,2368.4,4.6011]
[1726593316736,3.2078,2368.9,2368.5,0.4221]
[1726593316737,0.406,2368.6,2368.5,0.4221]
[1726593317339,0.406,2368.6,2368.4,0.4221]
[1726593317542,0.406,2368.6,2368.3,0.42213]
[1726593317741,3.6138,2368.6,2368.3,0.42213]
[1726593317944,0.406,2368.6,2368.4,0.42211]
[1726593318141,0.406,2368.6,2368.5,0.4221]
[1726593319541,0.406,2368.6,2368.4,0.4221]
[1726593319741,0.406,2368.6,2368.5,0.4221]
[1726593321243,0.406,2368.6,2368.4,0.42211]
[1726593321244,0.82808,2368.6,2368.4,0.42211]
[1726593321546,0.406,2368.6,2368.5,0.4221]
[1726593321743,0.406,2368.6,2368.3,3.2078]
[1726593321946,0.406,2368.6,2368.2,0.4268]
[1726593321947,0.406,2368.6,2368.5,0.4221]
[1726593322848,0.406,2368.6,2368.4,0.42211]
[1726593322849,0.82809,2368.6,2368.4,0.42211]
[1726593323148,0.82809,2368.6,2368.5,0.4221]
[1726593323149,0.406,2368.6,2368.5,0.4221]
[1726593324545,0.4199,2368.7,2368.6,0.42208]
[1726593325047,0.4199,2368.7,2368.2,3.6346]
[1726593325247,3.2078,2368.6,2368.2,0.4268]
[1726593325444,3.62989,2368.6,2368.4,0.42211]
[1726593326145,3.2078,2368.6,2368.5,0.4221]
[1726593326343,3.2078,2368.6,2368.2,0.4268]
[1726593326344,2.61572568,2368.7,2368.6,0.42208]
[1726593326550,0.4199,2368.7,2368.6,0.42208]
[1726593326747,0.3952,2368.8,2368.7,0.42206]
[1726593328150,0.3952,2368.8,2368.3,3.29]
[1726593328349,3.01307568,2368.8,2368.6,0.42207]
[1726593329445,2.19582568,2368.7,2368.6,0.42207]
[1726593330758,2.61788568,2368.7,2368.5,0.42208]
[1726593330948,2.19582568,2368.7,2368.4,0.4221]
[1726593331148,6.85383568,2368.6,2368.3,0.42213]
[1726593331453,0.42212,2368.4,2368.3,0.42212]
[1726593332051,2.19582568,2368.5,2368.1,0.4092]
[1726593332250,2.19582568,2368.5,2368.4,0.42212]
[1726593332754,2.19582568,2368.6,2368.5,1.47735]
[1726593332951,2.19582568,2368.7,2368.6,0.42208]
[1726593333146,0.3952,2368.8,2368.6,0.42207]
[1726593333147,3.01306568,2368.8,2368.6,0.42207]
[1726593333343,0.42211,2368.5,2368.1,3.6992]
[1726593333549,0.42212,2368.4,2368.3,0.42212]
[1726593333750,2.20253344,2368.5,2368.4,0.42211]
[1726593334057,2.20253344,2368.5,2368.1,3.6992]
[1726593334242,0.42212,2368.4,2368.3,0.42213]
[1726593334446,2.62464344,2368.5,2368.3,0.42213]
[1726593334644,2.20253344,2368.5,2368.3,0.42212]
[1726593334848,0.3997,2368.4,2368.3,0.42212]
[1726593335053,0.82182,2368.4,2368.0,1.05546]
[1726593335354,0.3997,2368.4,2368.3,0.42213]
[1726593335954,0.82182,2368.4,2368.3,0.42213]
[1726593336159,0.42216,2368.2,2367.9,5.0043]
[1726593336460,0.42213,2368.3,2368.1,0.42216]
[1726593336762,0.42217,2368.1,2367.9,0.4222]
[1726593336952,2.20253344,2368.1,2367.7,0.42223]
[1726593337157,2.20253344,2368.1,2367.5,0.8104]
[1726593337158,0.42224,2367.8,2367.5,0.42226]
[1726593337354,0.4205,2367.7,2367.3,0.4223]
[1726593337559,0.4205,2367.7,2367.4,0.42229]
[1726593337560,3.2078,2367.6,2367.4,0.42229]
[1726593337752,3.2078,2367.6,2367.2,0.4144]
[1726593337956,3.2078,2367.6,2367.4,0.42229]
[1726593339459,3.18550001,2367.6,2367.2,0.4144]
[1726593339853,3.18550001,2367.6,2367.4,0.42228]
[1726593340858,3.60776001,2367.6,2367.4,0.42228]
[1726593341060,0.42228,2367.5,2367.2,0.83672]
[1726593341251,6.4978,2367.3,2366.9,3.2078]
[1726593341451,6.4978,2367.3,2367.1,0.42235]
[1726593341452,0.416,2367.2,2367.1,0.42235]
[1726593342267,0.416,2367.2,2366.9,3.2078]
[1726593342466,0.416,2367.2,2367.0,0.42237]
[1726593342965,0.416,2367.2,2367.1,0.42235]
[1726593343368,0.416,2367.2,2367.0,0.42235]
[1726593343861,0.416,2367.2,2366.7,4.179]
[1726593343862,7.5148,2367.1,2366.7,4.179]
[1726593344062,3.63019,2366.9,2366.7,4.60141]
[1726593344454,3.63019,2366.9,2366.7,4.179]
[1726593344455,3.2078,2366.9,2366.7,4.179]
[1726593344658,3.2078,2366.9,2366.8,0.4224]
[1726593345364,0.8221,2367.2,2367.1,0.42235]
[1726593345365,0.83833,2367.2,2367.1,0.42235]
[1726593345668,0.416,2367.2,2367.1,0.42235]
[1726593346276,0.83833,2367.2,2367.1,0.42235]
[1726593347768,0.42235,2367.1,2367.0,0.42236]
[1726593348169,0.416,2367.2,2367.1,0.42235]
[1726593348170,0.83834,2367.2,2367.1,0.42235]
[1726593348571,5.06314,2367.2,2367.1,0.42235]
[1726593348876,0.42235,2367.1,2367.0,0.42235]
[1726593349078,4.04614,2367.2,2367.1,0.42235]
[1726593349281,0.42235,2367.1,2367.0,0.42235]
[1726593349780,0.42239,2366.9,2366.8,0.42239]
[1726593349984,0.42241,2366.8,2366.7,0.42241]
[1726593350168,0.42242,2366.7,2366.6,0.42242]
[1726593350367,3.6845,2366.7,2366.2,4.179]
[1726593350577,3.2078,2366.6,2366.2,4.179]
[1726593350776,3.2078,2366.6,2366.4,0.42247]
[1726593350777,0.42247,2366.5,2366.4,0.42247]
[1726593351278,0.3945,2366.7,2366.5,0.42245]
[1726593351584,3.63025,2366.6,2366.4,0.42247]
[1726593351879,3.63025,2366.6,2366.5,0.42245]
[1726593352271,3.63025,2366.6,2366.4,0.42246]
[1726593352668,0.42245,2366.5,2366.3,0.42248]
[1726593352873,0.42246,2366.5,2366.4,0.42247]
[1726593353078,0.42247,2366.4,2366.3,0.42248]
[1726593353882,0.42247,2366.4,2366.3,0.42249]
[1726593354066,0.42247,2366.4,2365.9,7.55419]
[1726593354271,0.4208,2366.3,2366.2,0.42251]
[1726593355270,3.2078,2366.9,2366.4,1.05617]
[1726593355577,3.2078,2366.9,2366.8,0.4224]
[1726593355882,3.63018,2366.9,2366.8,0.4224]